Cogmind - Beta 16 @@@ ROGUE MODE // 2026.01.28 @ 05:23:44 Player: shapeshifter Result: Destroyed by B-75 Beast with Magnetic Acceleration Cannon Performance ------------- Evolutions (3) 1500 Regions Visited (9) 1800 Robots Destroyed (86) 430 Value Destroyed (2507) 2507 Prototype IDs (26) 520 Alien Tech Used (0) 0 Bonus (300) 300 TOTAL SCORE: 7057 Bonus ------- Aligned with FarCom 300 Cogmind --------- Core Integrity 0/700 Matter 164/300 Energy 46/100 System Corruption 4% Temperature Cool (12) Movement Core (1350) Ox26 Location -7/Lower Caves Parts ------- > --- POWER (2) -------- (None) > --- PROPULSION (4) --- (None) > --- UTILITY (5) ------ Huge Storage Unit Improved Terrain Scanner Advanced Terrain Scan Processor > --- WEAPON (2) ------- (None) > --- INVENTORY (25) --- Lightpack 2.0 Trap Scanner Hacking Suite Trap Reconfigurator Chronowheel EM Pulse Cannon Improved EM Pulse Cannon Improved Datajack Remote Datajack Plasma Cutter Peak State ------------ > --- POWER ------------ Heavy Ion Engine Light Nuclear Core > --- PROPULSION ------- Improved Treads Armored Treads Armored Treads Advanced Treads > --- UTILITY ---------- Advanced Heat Sink Huge Storage Unit Experimental Sensor Array Improved Signal Interpreter Improved Shield Generator > --- WEAPON ----------- Advanced Beam Cannon Advanced Beam Cannon > --- INVENTORY -------- Light Nuclear Core Light Nuclear Core Light Treads Cryofiber Web Improved Heat Sink Lightpack 2.0 Trap Scanner Improved Terrain Scanner Advanced Terrain Scan Processor Improved Shield Generator Improved Shield Generator Hacking Suite Trap Reconfigurator Chronowheel EM Pulse Cannon EM Pulse Cannon EM Pulse Cannon Improved EM Pulse Cannon Heavy Missile Launcher Improved Datajack Remote Datajack Plasma Cutter [Rating: 56] Favorites ----------- Power Light Nuclear Core Engine Heavy Ion Engine Power Core Light Nuclear Core Propulsion Improved Treads Treads Improved Treads Wheel Compact Wheel Utility Huge Storage Unit Device Heat Sink Storage Huge Storage Unit Processor Advanced Terrain Scan Processor Weapon Advanced Beam Cannon Energy Gun Medium Laser Energy Cannon Advanced Beam Cannon Ballistic Gun Light Assault Rifle Launcher Heavy Missile Launcher Special Weapon Plasma Cutter Build | -11 -10 -10 -9 -9 -9 -8 -8 -7 -7 ------- Run | Yrd Mat Min Mat Min Exi Min Mat Fac Low Slots Evolved 6 | . . . 2 . . . 2 2 . Power 1 | . . . . . . . . 1 . Propulsion 2 | . . . 1 . . . 1 . . Utility 3 | . . . 1 . . . 1 1 . Weapon . | . . . . . . . . . . Parts Attached 70 | 8 1 11 15 2 4 . 7 11 11 Power 9 | 1 . 1 3 . . . 1 2 1 Engine 5 | 1 . 1 2 . . . . 1 . Core 4 | . . . 1 . . . 1 1 1 Reactor . | . . . . . . . . . . Propulsion 17 | 2 . 3 5 1 . . 3 2 1 Treads 15 | 2 . 1 5 1 . . 3 2 1 Leg . | . . . . . . . . . . Wheel 2 | . . 2 . . . . . . . Hover . | . . . . . . . . . . Flight . | . . . . . . . . . . Utility 22 | 2 1 1 4 1 1 . 1 5 6 Device 16 | 1 . 1 3 1 . . 1 5 4 Storage 4 | 1 1 . 1 . 1 . . . . Processor 2 | . . . . . . . . . 2 Hackware . | . . . . . . . . . . Protection . | . . . . . . . . . . Artifact . | . . . . . . . . . . Weapon 22 | 3 . 6 3 . 3 . 2 2 3 Energy Gun 4 | 2 . 1 1 . . . . . . Energy Cannon 10 | . . . 2 . 2 . 2 2 2 Ballistic Gun 6 | 1 . 5 . . . . . . . Ballistic Cannon . | . . . . . . . . . . Launcher 1 | . . . . . . . . . 1 Special Weapon 1 | . . . . . 1 . . . . Impact Weapon . | . . . . . . . . . . Slashing Weapon . | . . . . . . . . . . Piercing Weapon . | . . . . . . . . . . Special Melee Weapon . | . . . . . . . . . . Unidentified Prototypes 3 | . . 1 1 . . . . 1 . Parts Lost 33 | . . 7 4 . . . . 2 20 Power 6 | . . 1 1 . . . . . 4 Propulsion 8 | . . 3 . . . . . . 5 Utility 10 | . . . 2 . . . . 2 6 Weapon 9 | . . 3 1 . . . . . 5 Highest Loss Streak 5 | . . 4 3 . . . . 2 5 To Critical Strikes . | . . . . . . . . . . Average Backups 17 | 3 5 8 13 23 24 21 21 22 14 Power 1 | . 1 . . 3 3 3 2 1 . Propulsion 1 | 1 2 1 3 1 1 1 . 1 . Utility 7 | . . 3 5 10 9 9 8 8 5 Weapon 5 | . 1 2 3 8 9 6 6 6 3 Tool/Special . | . . . . . . . . . . Unused Backups 23 | . . 1 2 . 3 . 5 3 9 Power 1 | . . . 1 . . . . . . Propulsion . | . . . . . . . . . . Utility 14 | . . . 1 . 3 . 4 2 4 Weapon 4 | . . 1 . . . . . 1 2 Tool/Special 4 | . . . . . . . 1 . 3 Average Slot Usage (%) 87 | . 97 94 79 100 77 100 99 99 69 Engine 3 | . 14 11 4 . . . . 6 2 Core 7 | . . . 1 11 11 11 9 7 8 Treads 25 | . 28 22 29 33 33 33 36 30 5 Device 20 | . 14 14 10 22 21 22 26 29 21 Storage 9 | . 14 14 11 11 11 11 9 7 7 Processor 1 | . . . . . . . . . 6 Energy Gun 1 | . 12 . 5 . . . . . . Energy Cannon 12 | . . . 8 22 . 22 18 15 14 Ballistic Gun 3 | . 14 27 7 . . . . . . Peak Build Rating 56 | 7 7 15 24 26 30 30 39 51 56 Average Rating 27 | 4 6 7 17 24 20 30 37 45 36 On Entrance 21 | . 7 6 7 24 26 30 30 38 51 Avg Prop Armor Cover (%) 5 | . . 5 . . . . . . . Naked Turns . | . . . . . . . . . . Heaviest Build 110 | 14 19 18 95 95 95 95 98 110 110 Greatest Support 92 | 40 40 40 69 69 69 69 92 86 85 Greatest Overweight (x) 35 | . . . 1 1 1 1 1 1 35 Average Overweight (x) 1 | . . . . 1 1 1 1 1 14 Largest Inventory Capacity 25 | 8 10 10 25 25 25 25 25 25 25 Average Capacity 22 | 7 8 10 20 25 25 25 25 25 25 Most Carried 25 | 5 9 10 25 25 25 23 25 25 25 Average Carried 18 | 3 5 8 13 23 24 23 23 24 16 Final Capacity 25 | 8 10 10 25 25 25 25 25 25 25 Final Carried 25 | 4 9 7 23 24 23 23 25 25 12 Class Distribution -------------------- 87% | Mutant 12% | Scavenger-Mutant Dominant Class ---------------- Mutant | -10/Materials Scavenger-Mutant | -10/Mines Mutant | -9/Materials Mutant | -9/Mines Mutant | -9/Exiles Mutant | -8/Mines Mutant | -8/Materials Mutant | -7/Factory Mutant | -7/Lower Caves Resources | -11 -10 -10 -9 -9 -9 -8 -8 -7 -7 ----------- Run | Yrd Mat Min Mat Min Exi Min Mat Fac Low Matter Collected 1626 | 289 41 167 364 97 196 111 70 139 152 Remotely . | . . . . . . . . . . Salvage Created 2933 | 122 365 298 423 350 . 214 298 527 336 Parts 143 | 7 22 20 18 17 . 9 14 27 9 Haulers Intercepted 5 | . 2 . 1 . . . 1 1 . Recyclers Shooed 1 | . . . . 1 . . . . . Parts Field Recycled . | . . . . . . . . . . Retrieved Matter . | . . . . . . . . . . Parts Self-Destructed 16 | . . . . . . . . . 16 Prevented 2 | . . . . . . . . . 2 Parts Restored . | . . . . . . . . . . Kills | -11 -10 -10 -9 -9 -9 -8 -8 -7 -7 ------- Run | Yrd Mat Min Mat Min Exi Min Mat Fac Low Combat Hostiles Destroyed 74 | . 8 13 10 8 . 5 5 11 14 Guns 28 | . 7 13 8 . . . . . . Cannons 34 | . . . 2 7 . 5 4 10 6 AOE 8 | . . . . . . . . . 8 Classes Destroyed 12 | 2 4 1 3 . . 1 . 1 . Tunneler 2 | 2 . . . . . . . . . Hauler 5 | . 2 . 1 . . . 1 1 . Recycler 3 | 1 . . . 1 . 1 . . . Operator 1 | . . . 1 . . . . . . Watcher 1 | . 1 . . . . . . . . Swarmer 29 | . 3 8 3 3 . 4 . 3 5 Grunt 33 | . 5 4 4 5 . . 2 6 7 Brawler 1 | . . . 1 . . . . . . Sentry 5 | . . . 2 . . . 1 1 1 Demolisher 1 | . . 1 . . . . . . . Hunter 4 | . . . . . . 1 2 . 1 Programmer 1 | . . . . . . . . 1 . Best Kill Streak 6 | 3 6 3 6 4 . 4 3 4 6 Combat Bots Only 6 | . 6 3 6 3 . 4 2 4 6 Max Kills in Single Turn 2 | 1 1 1 1 1 . 1 1 1 2 Gunslinging . | . . . . . . . . . . Exploded 2 | . . . . . . . . . 2 Melee . | . . . . . . . . . . Uniques/NPCs Destroyed . | . . . . . . . . . . Combat | -11 -10 -10 -9 -9 -9 -8 -8 -7 -7 -------- Run | Yrd Mat Min Mat Min Exi Min Mat Fac Low Hostile Shots Fired 704 | . 55 83 113 28 . 49 16 108 252 Missed 212 | . 11 25 30 9 . 20 7 29 81 Hits 492 | . 44 58 83 19 . 29 9 79 171 Melee 4 | . . . 4 . . . . . . Projectile 488 | . 44 58 79 19 . 29 9 79 171 AOE 8 | . . 8 . . . . . . . Critical Strikes 9 | . 1 1 . . . . . 3 4 Damage Taken 5914 | . 402 860 847 205 . 249 132 852 2367 Core 1136 | . 67 143 150 10 . 17 28 121 600 Absorbed by Shields 712 | . . . . . . . . 337 375 Core Remaining (%) 66 | 100 . 16 . . . 55 94 . . Volleys Fired 263 | 9 31 50 50 21 . 13 12 41 36 Largest 2 | 2 2 2 2 2 . 2 2 2 2 Hottest 136 | 70 70 40 136 136 . 136 136 136 136 Shots Fired 502 | 18 62 93 92 42 . 28 24 82 61 Gun 252 | 18 62 93 79 . . . . . . Cannon 242 | . . . 13 42 . 28 24 82 53 Launcher 8 | . . . . . . . . . 8 Special . | . . . . . . . . . . Kinetic 168 | 9 31 93 35 . . . . . . Thermal 320 | 9 31 . 57 42 . 28 24 82 47 Explosive 8 | . . . . . . . . . 8 Electromagnetic 6 | . . . . . . . . . 6 Robot Hit Streak 16 | 4 8 7 11 4 . 3 7 16 13 Robot Miss Streak 5 | 1 3 3 4 3 . 4 2 3 5 Penetration Max . | . . . . . . . . . . Secondary Targets 6 | . 2 1 3 . . . . . . Max Gunslinging Chain 1 | . 1 1 1 . . . . . . Shots Hit Robots 307 | 12 39 58 57 20 . 13 14 55 39 Core Hits 130 | 5 19 25 16 10 . 7 8 18 22 Critical Kills 3 | . . 1 . 1 . . 1 . . Critical Parts Destroyed 1 | . . 1 . . . . . . . Critical Strikes 11 | . 3 2 4 1 . . 1 . . Burn 7 | . 3 . 4 . . . . . . Meltdown 2 | . . . . 1 . . 1 . . Destroy 2 | . . 2 . . . . . . . Melee Attacks . | . . . . . . . . . . Impact . | . . . . . . . . . . Slashing . | . . . . . . . . . . Piercing . | . . . . . . . . . . Sneak Attacks . | . . . . . . . . . . Combat Hostiles . | . . . . . . . . . . Follow-up Attacks . | . . . . . . . . . . Damage Inflicted 6482 | 137 426 486 981 411 . 247 330 1435 2029 Guns 1882 | 137 426 486 833 . . . . . . Cannons 3264 | . . . 143 411 . 247 330 1435 698 Explosions 1331 | . . . . . . . . . 1331 Melee . | . . . . . . . . . . Ramming 5 | . . . 5 . . . . . . Kinetic 853 | 49 162 486 156 . . . . . . Thermal 4185 | 88 264 . 820 411 . 247 330 1435 590 Explosive 1331 | . . . . . . . . . 1331 Electromagnetic 108 | . . . . . . . . . 108 Impact . | . . . . . . . . . . Slashing . | . . . . . . . . . . Piercing . | . . . . . . . . . . Highest Corruption 9 | . . . 9 9 9 9 . 4 4 Average Corruption 6 | . . . 8 9 9 9 . 3 4 Corruption Purged . | . . . . . . . . . . Corruption Blocked . | . . . . . . . . . . Effects 178 | . . . 20 43 35 25 . 12 43 Message Errors 43 | . . . 3 10 11 6 . 4 9 Matter Fused 44 | . . . 3 11 11 5 . 3 11 Heat Flow Errors 14 | . . . 2 4 3 1 . 1 3 Energy Discharges 27 | . . . . 5 7 4 . 1 10 Parts Rejected 1 | . . . . . . . . . 1 Parts Fused 2 | . . . . . . 1 . . 1 Data Loss (minor) 24 | . . . 5 8 2 5 . . 4 Data Loss (major) 9 | . . . . 3 . . . 3 3 Misfires 7 | . . . 3 1 . 2 . . 1 Alerts 4 | . . . 2 . 1 1 . . . Weapon Failures 3 | . . . 2 1 . . . . . Overload Shots . | . . . . . . . . . . Overflow Damage 135 | . . . . . . 2 . 34 99 Projectiles 54 | . . . . . . 2 . 34 18 Explosions 81 | . . . . . . . . . 81 Melee . | . . . . . . . . . . Knockbacks . | . . . . . . . . . . Impact . | . . . . . . . . . . Kinetic . | . . . . . . . . . . Secondary . | . . . . . . . . . . Self-Inflicted Damage 149 | . . . . . . . . . 149 Shots 3 | . . . . . . . . . 3 Rammed 1 | . . . 1 . . . . . . Targets Rammed 1 | . . . 1 . . . . . . Kicked . | . . . . . . . . . . Crushed . | . . . . . . . . . . Highest Temperature 434 | 50 224 6 434 156 183 152 13 183 177 Average Temperature 71 | 22 73 3 130 46 88 86 7 33 47 Received Heat Transfer 1467 | . 102 144 168 87 . 9 36 278 643 Effects 1 | . . . 1 . . . . . . Damage (minor) 1 | . . . 1 . . . . . . Siege Activations . | . . . . . . . . . . Martial Activations . | . . . . . . . . . . Shielding Activations . | . . . . . . . . . . Robots Disrupted . | . . . . . . . . . . Combat Hostiles . | . . . . . . . . . . Robots Corrupted . | . . . . . . . . . . Combat Hostiles . | . . . . . . . . . . Parts Fried . | . . . . . . . . . . Impact Corruptions . | . . . . . . . . . . Robots Melted 5 | . 1 . 1 1 . . 1 1 . Combat Hostiles 4 | . 1 . . 1 . . 1 1 . Parts Melted 18 | . 3 . 3 4 . . 2 4 2 Heat Transferred 7955 | 259 999 . 1739 740 . 444 518 2183 1073 Parts Sabotaged . | . . . . . . . . . . Parts Stolen . | . . . . . . . . . . Parts Stripped . | . . . . . . . . . . Power Chain Reactions . | . . . . . . . . . . Alert | -11 -10 -10 -9 -9 -9 -8 -8 -7 -7 ------- Run | Yrd Mat Min Mat Min Exi Min Mat Fac Low Maximum Alert Level . | . . . . . . . . . . Low Security (%) 100 | 100 100 100 100 100 . 100 100 100 . Level 1 . | . . . . . . . . . . Level 2 . | . . . . . . . . . . Level 3 . | . . . . . . . . . . Level 4 . | . . . . . . . . . . Level 5 . | . . . . . . . . . . High Security . | . . . . . . . . . . Max Security . | . . . . . . . . . . Peak Influence 139 | 10 127 139 114 118 . 82 43 92 . Initial 39 | . . 39 5 33 . . 19 . . Average 23 | 1 26 49 41 19 . 9 11 16 . Influence Increases 1994 | 15 233 311 327 210 . 125 143 315 315 Destroy 0b10 Robot/C 1480 | . 160 260 200 160 . 100 100 220 280 Destroy 0b10 Robot/NC 60 | 15 15 . 10 5 . 5 5 5 . Destroy Leader 272 | . 36 50 42 30 . 20 32 42 20 Allied During Kill 1 | . . 1 . . . . . . . Successful Hack 38 | . 22 . . . . . . 16 . Disable Machine 30 | . . . . 15 . . . 15 . Destroy Structure 8 | . . . . . . . 6 2 . Lose Combat Pursuer 105 | . . . 75 . . . . 15 15 Influence Decreases 1994 | 15 130 398 256 297 . 75 193 256 374 Entered New Map 183 | . . 64 11 54 . . 31 . 23 Time Decay 1586 | 15 130 268 205 243 . 75 143 236 271 Lost Part 186 | . . 46 40 . . . . 20 80 Lost Ally 20 | . . 20 . . . . . . . Purge Threat 19 | . . . . . . . 19 . . Squads Dispatched 6 | . 2 . 1 . . . . 3 . Investigation 1 | . 1 . . . . . . . . Extermination 2 | . . . . . . . . 2 . Reinforcement 3 | . 1 . 1 . . . . 1 . Assault . | . . . . . . . . . . Garrison . | . . . . . . . . . . Intercept . | . . . . . . . . . . Searches Triggered . | . . . . . . . . . . Construction Impeded . | . . . . . . . . . . Haulers Reinforced . | . . . . . . . . . . Active Scanning Responses . | . . . . . . . . . . Cargo Convoy Interrupts . | . . . . . . . . . . Stealth | -11 -10 -10 -9 -9 -9 -8 -8 -7 -7 --------- Run | Yrd Mat Min Mat Min Exi Min Mat Fac Low Distress Signals 3 | . 2 . 1 . . . . . . Communications Jammed . | . . . . . . . . . . Distress Signals . | . . . . . . . . . . Times Spotted 98 | . 14 13 22 7 . 8 4 13 17 Peak Tracking Total 7 | . 6 3 6 2 . 4 1 4 7 Tactical Retreats 5 | . . . 3 . . . . 1 1 Traps | -11 -10 -10 -9 -9 -9 -8 -8 -7 -7 ------- Run | Yrd Mat Min Mat Min Exi Min Mat Fac Low Traps Triggered 2 | . . . . . . . . 2 . Indirectly . | . . . . . . . . . . Trap Hack Attempts . | . . . . . . . . . . Triggered . | . . . . . . . . . . Disarmed . | . . . . . . . . . . Reprogrammed . | . . . . . . . . . . Reused . | . . . . . . . . . . Traps Extracted . | . . . . . . . . . . Installed . | . . . . . . . . . . Triggered . | . . . . . . . . . . Machines | -11 -10 -10 -9 -9 -9 -8 -8 -7 -7 ---------- Run | Yrd Mat Min Mat Min Exi Min Mat Fac Low Machines Disabled 4 | . . . . 1 . . . 1 2 Max in Single Turn 1 | . . . . 1 . . . 1 1 Machines Repaired . | . . . . . . . . . . Machines Dismantled . | . . . . . . . . . . Machines Sabotaged . | . . . . . . . . . . Overloaded Fab Kills . | . . . . . . . . . . Hacking | -11 -10 -10 -9 -9 -9 -8 -8 -7 -7 --------- Run | Yrd Mat Min Mat Min Exi Min Mat Fac Low Machines Accessed 13 | . 3 . 3 . 2 . 2 2 1 Terminals 9 | . 3 . 1 . . . 2 2 1 Fabricators . | . . . . . . . . . . Repair Stations . | . . . . . . . . . . Recycling Units 1 | . . . 1 . . . . . . Scanalyzers 1 | . . . 1 . . . . . . Garrison Access . | . . . . . . . . . . Total Hacks 30 | . 8 . 7 . 2 . 7 2 4 Successful 18 | . 4 . 3 . 2 . 4 1 4 Failed 11 | . 4 . 3 . . . 3 1 . Catastrophic 2 | . 1 . 1 . . . . . . Database Lockouts 1 | . . . 1 . . . . . . Manual 15 | . 9 . . . 1 . 5 . . Terminals 24 | . 8 . 3 . . . 7 2 4 Fabricators . | . . . . . . . . . . Repair Stations . | . . . . . . . . . . Recycling Units 1 | . . . 1 . . . . . . Scanalyzers 3 | . . . 3 . . . . . . Garrison Access . | . . . . . . . . . . Terminal Hacks 8 | . . . . . 2 . 1 1 4 Record 5 | . . . . . 1 . . . 4 Branch Access Points 1 | . . . . . . . . 1 . Unreport Threat 1 | . . . . . . . 1 . . Proto ID Catalog 1 | . . . . . 1 . . . . Fabricator Hacks . | . . . . . . . . . . Repair Station Hacks . | . . . . . . . . . . Recycling Unit Hacks 1 | . . . 1 . . . . . . Retrieve Components 1 | . . . 1 . . . . . . Scanalyzer 2 | . . . 2 . . . . . . Retrieve Study 2 | . . . 2 . . . . . . Garrison Access Hacks . | . . . . . . . . . . Unauthorized Hacks 7 | . 4 . . . . . 3 . . Terminals 7 | . 4 . . . . . 3 . . Botnet 2 | . 1 . . . . . 1 . . Skim 5 | . 3 . . . . . 2 . . Fabricators . | . . . . . . . . . . Repair Stations . | . . . . . . . . . . Recycling Units . | . . . . . . . . . . Scanalyzers . | . . . . . . . . . . Garrison Access . | . . . . . . . . . . Data Cores Recovered . | . . . . . . . . . . Used . | . . . . . . . . . . Hacking Detections 7 | . 2 . 1 . . . 1 2 1 Full Trace Events 2 | . 1 . . . . . . . 1 Feedback Events . | . . . . . . . . . . Feedback Blocked . | . . . . . . . . . . Robot Schematics Acquired . | . . . . . . . . . . Robots Built . | . . . . . . . . . . Authchips . | . . . . . . . . . . Time . | . . . . . . . . . . Total Robot Build Rating . | . . . . . . . . . . Part Schematics Acquired . | . . . . . . . . . . Parts Built . | . . . . . . . . . . Authchips . | . . . . . . . . . . Time . | . . . . . . . . . . Total Part Build Rating . | . . . . . . . . . . Part Studies Acquired 2 | . . . 2 . . . . . . Parts Repaired . | . . . . . . . . . . Time . | . . . . . . . . . . Parts Recycled . | . . . . . . . . . . Recycled Matter . | . . . . . . . . . . Retrieved Matter . | . . . . . . . . . . Retrieved Components 3 | . . . 3 . . . . . . Parts Scanalyzed . | . . . . . . . . . . Part Schematics Acquired . | . . . . . . . . . . Parts Damaged . | . . . . . . . . . . Bothacking | -11 -10 -10 -9 -9 -9 -8 -8 -7 -7 ------------ Run | Yrd Mat Min Mat Min Exi Min Mat Fac Low Used RIF Installer . | . . . . . . . . . . Robots Hacked . | . . . . . . . . . . Non-combat . | . . . . . . . . . . Combat . | . . . . . . . . . . Robot Hacks Applied . | . . . . . . . . . . Relay Couplers Released . | . . . . . . . . . . Fabnet Peak Effective % . | . . . . . . . . . . Robots Rewired . | . . . . . . . . . . Allies Hacked . | . . . . . . . . . . Hacks Repelled . | . . . . . . . . . . Allies | -11 -10 -10 -9 -9 -9 -8 -8 -7 -7 -------- Run | Yrd Mat Min Mat Min Exi Min Mat Fac Low Total Allies 2 | . . 2 . . . . . . . Largest Group 2 | . . 2 . . . . . . . Highest-Rated Group 43 | . . 43 . . . . . . . Highest-Rated Ally 31 | . . 31 . . . . . . . Total Orders . | . . . . . . . . . . Ally Attacks 9 | . . 9 . . . . . . . Total Damage 141 | . . 141 . . . . . . . Kills 1 | . . 1 . . . . . . . Allies Corrupted . | . . . . . . . . . . Allies Melted . | . . . . . . . . . . Intel | -11 -10 -10 -9 -9 -9 -8 -8 -7 -7 ------- Run | Yrd Mat Min Mat Min Exi Min Mat Fac Low Active Infowar (turns) 3286 | 12 496 668 437 . . . . . 1673 Sensors 629 | . . 2 . . . . . . 627 Terrain 1046 | . . . . . . . . . 1046 Seismic 1611 | 12 496 666 437 . . . . . . Robot Analysis Total . | . . . . . . . . . . Derelict Logs Recovered 2 | . . 1 . 1 . . . . . Drone Launches . | . . . . . . . . . . Drone Recoveries . | . . . . . . . . . . Exploration | -11 -10 -10 -9 -9 -9 -8 -8 -7 -7 ------------- Run | Yrd Mat Min Mat Min Exi Min Mat Fac Low Turns Passed 8759 | 128 496 668 953 1200 974 661 632 1048 1999 Spaces Moved 2982 | 64 250 360 379 468 400 260 231 359 211 Core 104 | 16 . . . . . . . . 88 Treads 2697 | 48 250 262 296 468 400 260 231 359 123 Legs . | . . . . . . . . . . Wheels 181 | . . 98 83 . . . . . . Hover . | . . . . . . . . . . Flight . | . . . . . . . . . . Fastest Speed 50 | 50 160 100 90 240 240 240 240 241 238 Average Speed 257 | 132 160 143 185 240 240 240 244 244 868 Slowest Speed 1800 | 160 160 160 240 240 240 240 245 245 1800 Overloaded Moves . | . . . . . . . . . . Propulsion Burnouts . | . . . . . . . . . . Robots Hopped . | . . . . . . . . . . Potential Cave-ins . | . . . . . . . . . . Cave-ins Triggered . | . . . . . . . . . . Exploration Rate (%) 42 | 4 37 77 22 99 69 53 23 7 36 Regions Visited 9 Branch Regions 5 Pre-discovered Areas 3 | . . 1 . 1 1 . . . . Known Exits Taken 1 | . . . . . . . . 1 . Unknown Exits Taken 8 | 1 1 1 1 1 1 1 1 . . Scrap Searched 4 | . . 2 . 1 . . . . 1 Spaces Dug . | . . . . . . . . . . Terrain Destroyed 78 | . . . . . . . 5 . 73 Melee . | . . . . . . . . . . Projectile 5 | . . . . . . . 5 . . AOE 73 | . . . . . . . . . 73 Terrain Rammed . | . . . . . . . . . . Walls Destroyed . | . . . . . . . . . . Machines Disabled . | . . . . . . . . . . Actions | -11 -10 -10 -9 -9 -9 -8 -8 -7 -7 --------- Run | Yrd Mat Min Mat Min Exi Min Mat Fac Low Total 3604 | 91 291 435 545 503 420 272 278 453 316 Wait 148 | . 2 . 63 10 . . 8 19 46 Move 2973 | 63 249 359 378 467 399 259 230 358 211 Hop . | . . . . . . . . . . Pick Up 86 | 11 6 9 29 2 4 . 12 12 1 Fast Attach 8 | . . . 4 . 2 . . 2 . Attach 45 | 7 . 6 6 . 3 . 2 6 15 Detach 4 | . . . . . 3 . . . 1 Swap 27 | 1 1 6 5 2 . . 5 4 3 Drop 49 | . 2 5 9 1 9 . 9 11 3 Fire 263 | 9 31 50 50 21 . 13 12 41 36 Melee . | . . . . . . . . . . Ram . | . . . . . . . . . . Kick . | . . . . . . . . . . Crush 1 | . . . 1 . . . . . . Escape Stasis . | . . . . . . . . . . Rewire . | . . . . . . . . . . Trap . | . . . . . . . . . . Miscellaneous . | . . . . . . . . . . Route ------- -11/Scrapyard -10/Materials (discovered 2 exits: *Mat / [*Min]) -10/Mines (discovered 2 exits: *Mat / [*Sub]) -9/Materials -9/Mines (discovered 3 exits: *Mat x2 / *Exi) -9/Exiles -8/Mines -8/Materials -7/Factory (discovered 2 exits: *Low x2) -7/Lower Caves History --------- Turn | Location | Event 6 | -11/Scrapyard | Discovered new exit (range 14) 129 | -11/Scrapyard | Entered Materials 309 | -10/Materials | Build established: Mutant 464 | -10/Materials | Discovered new exit (range 16) 569 | -10/Materials | Discovered new exit (range 10) 625 | -10/Materials | Entered Mines 730 | -10/Mines | Found a damaged Exp. Sensor Array with a note attached 733 | -10/Mines | Found Prototype Device 743 | -10/Mines | Identified Exp. Sensor Array 957 | -10/Mines | Build established: Scavenger-Mutant 976 | -10/Mines | Assembled infested the area 1133 | -10/Mines | Discovered new exit (range 6) 1151 | -10/Mines | Core integrity fell below 50% 1183 | -10/Mines | Lost 4 parts (1p2n1w) 1216 | -10/Mines | Learned location of Storage (-9) 1248 | -10/Mines | Core integrity fell below 20% 1276 | -10/Mines | Discovered new exit (range 16) 1293 | -10/Mines | Entered Materials 1293 | -9/Materials | Evolved 2 slots: Propulsion x1, Utility x1 1304 | -9/Materials | Central database locked down 1776 | -9/Materials | Lost 3 parts (1p2u) 2051 | -9/Materials | Build established: Mutant 2156 | -9/Materials | Discovered new exit (range 8) 2246 | -9/Materials | Entered Mines 2302 | -9/Mines | Discovered new exit (range 15) 2494 | -9/Mines | Discovered new exit (range 16) 2792 | -9/Mines | Deemed a non-threat by the Exiles lab entrance 3435 | -9/Mines | Discovered new exit (range 5) 3446 | -9/Mines | Entered Exiles 3518 | -9/Exiles | Met 8R-AWN 3563 | -9/Exiles | Met EX-HEX 3657 | -9/Exiles | Met EX-DEC 3666 | -9/Exiles | Learned location of Zion (-6) 4082 | -9/Exiles | Met EX-BIN 4109 | -9/Exiles | Aligned with FarCom system 4111 | -9/Exiles | Given EX-Vault access code 4166 | -9/Exiles | Opened EX-Vault 4184 | -9/Exiles | Found Trap Reconfigurator 4192 | -9/Exiles | Found Chronowheel 4198 | -9/Exiles | Found Lightpack 2.0 4248 | -9/Exiles | Warned to stay clear of 0b10 Research branches 4270 | -9/Exiles | Exiles lab attacked by MAIN.C 4399 | -9/Exiles | Discovered new exit (range 10) 4420 | -9/Exiles | Stole three prototypes: Lightpack 2.0, Trap Reconfigurator, Chronowheel 4420 | -9/Exiles | Entered Mines 5052 | -8/Mines | Discovered new exit (range 10) 5081 | -8/Mines | Entered Materials 5081 | -8/Materials | Evolved 2 slots: Propulsion x1, Utility x1 5448 | -8/Materials | Discovered new exit (range 8) 5713 | -8/Materials | Entered Factory 5713 | -7/Factory | Evolved 2 slots: Power x1, Utility x1 5715 | -7/Factory | FarCom data flow suspended 5978 | -7/Factory | Identified exit to Lower Caves 6761 | -7/Factory | Entered Lower Caves 6933 | -7/Lower Caves | Attracted the attention of an 0b10 base 6993 | -7/Lower Caves | Lost 4 parts (1p1n2u) 7004 | -7/Lower Caves | Learned Armory garrison access intel 7004 | -7/Lower Caves | Learned Armory terminal intel 7004 | -7/Lower Caves | Learned Extension security intel 7004 | -7/Lower Caves | Learned Factory security intel 7110 | -7/Lower Caves | Attracted the attention of an 0b10 checkpoint 7145 | -7/Lower Caves | Core integrity fell below 50% 7169 | -7/Lower Caves | Lost 5 parts (4n1u) 7539 | -7/Lower Caves | Lost 3 parts (1p1u1w) 7727 | -7/Lower Caves | Lost 3 parts (1u2w) 8733 | -7/Lower Caves | Spotted B-75 Beast 8739 | -7/Lower Caves | Core integrity fell below 20% 8760 | -7/Lower Caves | Destroyed by B-75 Beast with Magnetic Acceleration Cannon Last Messages --------------- 08211_ Acquired 5 matter. 08236_ SCM V7DW 08760_ System corrupted: Imp. Shield Generator rejected. 08760_ Lgt. Nuclear Core destroyed. Map ----- +----------------------------------------------------+ | ????????????????????????? ? ############# | | ??????????????????????? ?## ############# | | ?????????????????????? #### ############# | | ???????????????????? ##### ###### ###### | | ????????????????????? ##### #### ##### | | ?????????????????? #### ##### %%## ##### | | ????????????????? ##### ###### ##### | | ????????????????? #### ##### % % #######% | | ???????????????? #### ##### ######### | | ??????????????? ####### ###### % ######### | | ??????????????? ############### % % % | | ??????????????? ### ############ | | ??????????????? ############ ####### | | ?????????????? ############ ####### | | ?????????????? ### ### ####### | | ?????????????? #### ### ### # | | ????????????? ##### ### ######### ## | | ????????????? #### ### ############ ### | | ??????????? #### ## # ############ ## | | ??????????? ####### ############ | | ?????????? ######## ########### | | ??????????? ######### ####### | | ???????????? ######### ####### | | ???????????#? ########% ####### | | ??????????### ####;# ## #### | | ?????????#??## % @ #### #### | | ???????????### $ % ###### #### | | ??????????#?# ###### ;# ####### ### | | ??????????###?#? ###### ;########## ##?#?? | | ??????????#??## ###### ;;### #### ?#???? | | ?????????? ? ?#### ## ??????? | | ??????????? ?#?## ???????? | | ???????????######### BB ? ????????? | | ??????????????#??#### # BB ??????????? | | ????????????????######## ### #??????????? | | ?????????????###???#??## #######????????????? | | ??????????????#?#?###################????????????? | | ?????????????????#####?#######?####??????????????? | | ??????????????????#??#?####?##??#?#??????????????? | | ??????????????????##?#####?#?#???????????????????? | | ????????????????????###?#?##??#??????????????????? | | ?????????????????????????#???????????????????????? | | ?????????????????????????????????????????????????? | | ?????????????????????????????????????????????????? | | ?????????????????????????????????????????????????? | | ?????????????????????????????????????????????????? | | ?????????????????????????????????????????????????? | | ?????????????????????????????????????????????????? | | ?????????????????????????????????????????????????? | | ?????????????????????????????????????????????????? | +----------------------------------------------------+ Best States ------------- Heat Dissipation 67 Energy Generation 23 Energy Capacity 340 Matter Stores 300 Matter Capacity 300 Sight Range 16 Robot Scan Range 20 Terrain Scan Range 16 Terrain Scan Density 210 Base Temperature (-) 100 Evasion (%) 50 Recoil Reduction 4 Particle Charging 15 Item Schematics ----------------- None Robot Schematics ------------------ None Fabricated ------------ Nothing Repaired ---------- Nothing Studied --------- Com. Wheel | -9/Materials | Hacked Particle Gun | -9/Materials | Hacked Alien Tech Used ----------------- None Achievements -------------- None Challenges ------------ None Game ------ Seed ShockMagneticBasin Manual? 0 Play Time 00:32:20 Cumulative 666.2 hours Start 2026.01.27 @ 03:58:26 End 2026.01.28 @ 05:23:44 Sessions 8 Manual Loads 0 Difficulty Rogue Special Mode None Game No. 831 Rogue 831 Adventurer 0 Explorer 0 Win Type - Total 24 Types 11/1/3/3/2/0/2/2/0/0 Lore% 96 Gallery% 93 Achievement% 81 Wizard Run 0 Options --------- Layout 2 ASCII 0 Keyboard 0 Movement Mouse Keybinds 0 Fullscreen 1 Font 24/Proggy Map View 50x44 Zoom Use 0% Tactical HUD 1 Map Filters NONE Filters NONE Steam 1 RUN: ffff164b-f7fc-4319-a98d-bd0186dbe30c